Cogmind - Beta 13 @@@ ROGUE MODE // 2024.05.30 @ 14:50:45 Player: BrainTooSmol Result: Destroyed by M Guard with Graviton Cannon Performance ------------- Evolutions (9) 4500 Regions Visited (28) 5600 Robots Destroyed (164) 820 Value Destroyed (4409) 4409 Prototype IDs (33) 660 Alien Tech Used (0) 0 Bonus (4083) 4083 TOTAL SCORE: 20072 Bonus ------- High Alert Combat Kills 136 Follower Combat Kills 457 Met Imprinter 300 Met Warlord at Base 500 MAIN.C Attacked Warlord 500 Scanned by Researcher 500 Met Warlord at Command 2000 Friendly Fire -310 Cogmind --------- Core Integrity 0/1600 Matter 270/300 Energy 76/100 System Corruption 6% Temperature Cool (0) Movement Core (50) Location -1/Command Parts ------- > --- POWER (2) -------- (None) > --- PROPULSION (7) --- (None) > --- UTILITY (13) ----- Advanced Hacking Suite System Mapper Ghost Barrier > --- WEAPON (3) ------- (None) > --- INVENTORY (5) ---- Hypervelocity Railgun Peak State ------------ > --- POWER ------------ Light Particle Reactor Light Particle Reactor > --- PROPULSION ------- Nuclear Pulse Array Field Propulsion Array Q-thruster Improved Diametric Drive Improved Diametric Drive > --- UTILITY ---------- Enhanced Optical Array Long-range Sensor Array Experimental Signal Interpreter ECM Suite Advanced Reaction Control System Experimental Utility Shielding Advanced Hacking Suite Advanced Hacking Suite Advanced Hacking Suite Advanced Hacking Suite System Mapper Experimental System Shield Ghost Barrier > --- WEAPON ----------- Point Singularity Launcher Guided Micro-nuke Launcher > --- INVENTORY -------- Impulse Thruster Experimental Utility Shielding Hypervelocity Railgun Hypervelocity Railgun [Rating: 184] Favorites ----------- Power Light Deuterium Engine Engine Light Deuterium Engine Power Core Light Nuclear Core Reactor Light Quantum Reactor Propulsion Nuclear Pulse Array Treads Light Treads Leg Aluminum Leg Wheel Wheel Hover Unit Aerolev Unit Flight Unit Nuclear Pulse Array Utility Advanced Hacking Suite Device ECM Suite Storage Large Storage Unit Processor Enhanced Optical Array Hackware Advanced Hacking Suite Protection Experimental Utility Shielding Weapon Lance Energy Gun Medium Laser Energy Cannon Advanced Beam Cannon Ballistic Gun Heavy Assault Rifle Ballistic Cannon Light Cannon Launcher Mini Smartbomb Launcher Special Weapon Multitool Slashing Weapon Katana Piercing Weapon Lance Special Melee Weapon Improved Datajack Build | -11 -10 -10 -10 -8 -7 -7 -7 -7 -7 -7 -6 -6 -6 -5 -5 -5 -4 -4 -4 -4 -4 -4 -3 -3 -3 -2 -1 -1 ------- Run | Yrd Mat Min Sub Mat Fac Was Fac Low Low Zio Pro Fac Ext Fac Was Fac Fac Was Fac Upp Upp War Pro Res Tes Res Acc Com Slots Evolved 18 | . . . . 4 2 . . . . . . 2 . 2 . . 2 . . . . . . 2 . 2 2 . Power 1 | . . . . . . . . . . . . . . . . . . . . . . . . 1 . . . . Propulsion 5 | . . . . . . . . . . . . . . 1 . . 1 . . . . . . 1 . 1 1 . Utility 11 | . . . . 4 2 . . . . . . 2 . 1 . . 1 . . . . . . . . 1 . . Weapon 1 | . . . . . . . . . . . . . . . . . . . . . . . . . . . 1 . Parts Attached 248 | 1 13 4 8 37 30 2 8 2 2 . 3 14 . 19 . 26 8 5 6 1 2 9 . 1 20 8 3 16 Power 23 | . 1 . . 3 2 . . . . . . . . 3 . 4 1 1 2 . . 1 . . 1 3 . 1 Engine 6 | . 1 . . 2 2 . . . . . . . . . . 1 . . . . . . . . . . . . Core 7 | . . . . 1 . . . . . . . . . 3 . 3 . . . . . . . . . . . . Reactor 10 | . . . . . . . . . . . . . . . . . 1 1 2 . . 1 . . 1 3 . 1 Propulsion 56 | . 5 . 1 10 3 . . . . . . 2 . 3 . 6 3 3 2 1 . 2 . 1 4 4 2 4 Treads 6 | . 1 . 1 4 . . . . . . . . . . . . . . . . . . . . . . . . Leg 4 | . 3 . . . . . . . . . . . . . . . . . . . . . . . 1 . . . Wheel 5 | . 1 . . 3 . . . . . . . . . 1 . . . . . . . . . . . . . . Hover 1 | . . . . 1 . . . . . . . . . . . . . . . . . . . . . . . . Flight 40 | . . . . 2 3 . . . . . . 2 . 2 . 6 3 3 2 1 . 2 . 1 3 4 2 4 Utility 93 | 1 3 . 2 17 16 2 . 2 . . 2 7 . 7 . 9 3 1 2 . 1 4 . . 11 1 . 2 Device 45 | 1 2 . 1 9 2 2 . 2 . . 1 2 . 3 . 3 2 1 2 . . 3 . . 7 1 . 1 Storage 1 | . 1 . . . . . . . . . . . . . . . . . . . . . . . . . . . Processor 10 | . . . . 2 2 . . . . . . 3 . . . . 1 . . . . . . . 2 . . . Hackware 21 | . . . . . 11 . . . . . . 1 . 3 . 3 . . . . . 1 . . 2 . . . Protection 16 | . . . 1 6 1 . . . . . 1 1 . 1 . 3 . . . . 1 . . . . . . 1 Artifact . | . . . . . . . . . . . . . . . . . . . . . . . . . . . . . Weapon 76 | . 4 4 5 7 9 . 8 . 2 . 1 5 . 6 . 7 1 . . . 1 2 . . 4 . 1 9 Energy Gun 8 | . 3 1 . . . . 3 . . . . . . . . . . . . . . . . . 1 . . . Energy Cannon 2 | . . . . 2 . . . . . . . . . . . . . . . . . . . . . . . . Ballistic Gun 8 | . . . . 3 . . . . . . . . . . . . . . . . . . . . 1 . . 4 Ballistic Cannon 5 | . . 1 3 . . . . . . . . . . . . 1 . . . . . . . . . . . . Launcher 16 | . . 1 . . . . . . 1 . 1 1 . . . 3 1 . . . 1 1 . . 2 . 1 3 Special Weapon 15 | . 1 . . . 5 . 3 . . . . 3 . 1 . 2 . . . . . . . . . . . . Impact Weapon . | . . . . . . . . . . . . . . . . . . . . . . . . . . . . . Slashing Weapon 12 | . . 1 2 2 3 . . . . . . . . 4 . . . . . . . . . . . . . . Piercing Weapon 9 | . . . . . 1 . 1 . 1 . . 1 . 1 . 1 . . . . . 1 . . . . . 2 Special Melee Weapon 1 | . . . . . . . 1 . . . . . . . . . . . . . . . . . . . . . Unidentified Prototypes 26 | . . . . 5 1 . . . . . . . . 1 . 2 1 1 . . . 3 . . 9 1 1 1 Corrupted Parts 1 | . . . . . . . . . . . . . . . . . . . . . . . . . . . . 1 System Corruption 1 | . . . . . . . . . . . . . . . . . . . . . . . . . . . . 1 Parts Lost 55 | . 2 . 2 8 1 . 1 . . . . . 1 7 . 7 1 . . . . . . . . . 1 24 Power 9 | . 1 . 1 1 . . . . . . . . 1 2 . 1 1 . . . . . . . . . . 1 Propulsion 16 | . . . 1 1 . . . . . . . . . 2 . 3 . . . . . . . . . . 1 8 Utility 20 | . . . . 5 1 . . . . . . . . 2 . 1 . . . . . . . . . . . 11 Weapon 10 | . 1 . . 1 . . 1 . . . . . . 1 . 2 . . . . . . . . . . . 4 Highest Loss Streak 18 | . 1 . 2 3 1 . 1 . . . . . 1 3 . 2 1 . . . . . . . . . 1 18 To Critical Strikes 1 | . . . 1 . . . . . . . . . . . . . . . . . . . . . . . . . Average Slot Usage (%) 92 | . 95 100 98 95 94 100 99 93 92 92 92 96 99 85 82 89 79 82 82 84 84 91 94 85 84 89 88 83 Engine 4 | . 10 14 12 3 6 7 7 7 7 7 7 6 5 1 . . 4 . . . . . . . . . . . Core 1 | . . . . 4 . . . . . . . . . 1 5 4 . . . . . . . . . . . . Reactor 1 | . . . . . . . . . . . . . . . . . . 4 4 5 5 5 5 4 4 7 8 6 Treads 2 | . 5 14 14 9 . . . . . . . . . . . . . . . . . . . . . . . . Wheel 2 | . 5 14 14 8 . . . . . . . . . . . . . . . . . . . . . . . . Flight 9 | . . . . . 14 15 15 15 15 15 15 13 13 8 11 10 9 10 9 10 10 13 15 14 13 16 20 19 Device 11 | . 14 14 13 19 6 7 7 7 7 7 6 5 6 7 11 8 10 12 14 15 15 11 10 9 8 13 12 11 Storage 3 | . 14 14 14 9 . . . . . . . . . . . . . . . . . . . . . . . . Processor 9 | . . . . 13 11 7 7 7 7 7 7 12 13 11 11 11 10 11 10 10 10 10 10 9 9 8 8 8 Hackware 26 | . . . . . 38 46 46 46 46 46 46 40 40 38 35 39 31 31 31 31 31 34 36 33 33 30 28 27 Protection 3 | . . . . 9 . . . . . . . 5 6 3 . 3 5 5 5 5 5 5 5 4 4 4 4 3 Energy Gun 2 | . 26 26 2 . . . 5 1 . . . . . . . . . . . . . 1 . . . . . . Energy Cannon 1 | . . . . 9 . . . . . . . . . . . . . . . . . . . . . . . . Ballistic Gun 1 | . . . . 6 . . . . . . . . . . . . . . . . . . . . . . . 1 Ballistic Cannon 1 | . . . 23 1 . . . . . . . . . . . . . . . . . . . . . . . . Launcher 1 | . . . . . . . . . 3 . 6 . 6 3 . 2 . . . . 1 3 5 4 3 4 4 2 Piercing Weapon 3 | . . . . . 5 7 6 7 3 7 . 5 6 . . 4 5 5 5 5 3 4 5 4 4 4 4 2 Naked Turns . | . . . . . . . . . . . . . . . . . . . . . . . . . . . . . Heaviest Build 52 | 15 31 30 32 52 37 10 10 10 9 8 9 11 10 12 12 28 19 20 24 24 25 27 27 27 27 43 49 50 Greatest Support 100 | 20 20 10 10 42 20 10 10 10 10 10 10 12 12 23 23 23 26 26 26 26 26 27 27 33 100 43 50 52 Greatest Overweight (x) 5 | . 3 2 3 5 1 . . . . . . . . 1 . 2 . . . . . 1 . . 1 1 1 1 Average Overweight (x) . | . . 2 2 3 . . . . . . . . . . . . . . . . . . . . . . . . Largest Inventory Capacity 15 | 8 15 15 15 15 15 5 5 5 5 5 5 5 5 5 5 5 5 5 5 5 5 5 5 5 5 5 5 5 Average Capacity 7 | 8 10 15 15 15 5 5 5 5 5 5 5 5 5 5 5 5 5 5 5 5 5 5 5 5 5 5 5 5 Most Carried 15 | 6 10 10 12 15 14 5 5 5 5 5 5 5 5 5 5 5 5 5 5 5 5 5 5 5 5 5 5 5 Average Carried 6 | 5 7 10 10 13 4 5 4 5 5 5 4 4 5 4 4 4 3 4 4 5 5 4 5 4 4 3 3 4 Final Capacity 15 | 8 15 15 15 15 5 5 5 5 5 5 5 5 5 5 5 5 5 5 5 5 5 5 5 5 5 5 5 5 Final Carried 14 | 5 10 10 11 14 5 5 5 5 5 5 5 5 5 4 5 5 4 5 5 5 5 5 5 4 5 5 5 1 Class Distribution -------------------- 29% | Wizard-Ninja 19% | Wizard-Scout 17% | Scavenger-Mutant 11% | Mutant 10% | Wizard-Sprinter 5% | Hacker-Scout 4% | Wizard-Mutant Dominant Class ---------------- Mutant | -10/Materials Mutant | -10/Mines Mutant | -10/Subcaves Scavenger-Mutant | -8/Materials Hacker-Scout | -7/Factory Wizard-Sprinter | -7/Waste Wizard-Sprinter | -7/Factory Wizard-Sprinter | -7/Lower Caves Wizard-Sprinter | -7/Lower Caves Wizard-Sprinter | -7/Zion Wizard-Sprinter | -6/Proximity Caves Wizard-Scout | -6/Factory Wizard-Scout | -6/Extension Wizard-Scout | -5/Factory Wizard-Ninja | -5/Waste Wizard-Scout | -5/Factory Wizard-Ninja | -4/Factory Wizard-Ninja | -4/Waste Wizard-Ninja | -4/Factory Wizard-Ninja | -4/Upper Caves Wizard-Ninja | -4/Upper Caves Wizard-Ninja | -4/Warlord Wizard-Ninja | -3/Proximity Caves Wizard-Ninja | -3/Research Wizard-Ninja | -3/Testing Wizard-Ninja | -2/Research Wizard-Ninja | -1/Access Wizard-Ninja | -1/Command Resources | -11 -10 -10 -10 -8 -7 -7 -7 -7 -7 -7 -6 -6 -6 -5 -5 -5 -4 -4 -4 -4 -4 -4 -3 -3 -3 -2 -1 -1 ----------- Run | Yrd Mat Min Sub Mat Fac Was Fac Low Low Zio Pro Fac Ext Fac Was Fac Fac Was Fac Upp Upp War Pro Res Tes Res Acc Com Matter Collected 4822 | 210 130 30 261 739 295 157 120 . 20 20 100 99 . 312 . 475 286 115 . 118 86 158 139 . 352 80 . 520 Remotely . | . . . . . . . . . . . . . . . . . . . . . . . . . . . . . Salvage Created 5398 | 88 466 25 227 1765 204 . 29 . . . 87 26 . 276 . 506 181 . . . 35 . 52 . 1228 . . 203 Parts 332 | 6 36 5 21 115 16 . 3 . . . 11 4 . 12 . 30 6 . . . 6 . 1 . 36 . . 24 Haulers Intercepted 5 | . 2 . . 2 . . . . . . . . . . . 1 . . . . . . . . . . . . Recyclers Shooed 5 | 1 . . . 2 . . . . . . . . . . . . . . . . . . . . 1 . . 1 Parts Field Recycled . | . . . . . . . . . . . . . . . . . . . . . . . . . . . . . Retrieved Matter . | . . . . . . . . . . . . . . . . . . . . . . . . . . . . . Parts Self-Destructed 21 | . . . 6 . . . . . . . 9 . . . . . . . . . 5 . 1 . . . . . Prevented . | . . . . . . . . . . . . . . . . . . . . . . . . . . . . . Kills | -11 -10 -10 -10 -8 -7 -7 -7 -7 -7 -7 -6 -6 -6 -5 -5 -5 -4 -4 -4 -4 -4 -4 -3 -3 -3 -2 -1 -1 ------- Run | Yrd Mat Min Sub Mat Fac Was Fac Low Low Zio Pro Fac Ext Fac Was Fac Fac Was Fac Upp Upp War Pro Res Tes Res Acc Com Combat Hostiles Destroyed 107 | . 12 3 10 34 . . . . . . 7 . . 6 . 14 3 . . . 5 . 2 . . . . 11 Melee 1 | . . . . . . . . . . . . . . 1 . . . . . . . . . . . . . . Guns 26 | . 12 . . 14 . . . . . . . . . . . . . . . . . . . . . . . . Cannons 29 | . . . 10 19 . . . . . . . . . . . . . . . . . . . . . . . . AOE 51 | . . 3 . 1 . . . . . . 7 . . 5 . 14 3 . . . 5 . 2 . . . . 11 Classes Destroyed 18 | 2 4 . 3 6 . . . . . . 1 . . 1 . . . . . . . . . . 1 . . . Worker 6 | . . . . 1 . . . . . . . . . . . 2 . . . . . . . . 1 . . 2 Builder 2 | . . . . 1 . . . . . . . . . . . . . . . . . . . . 1 . . . Tunneler 5 | 1 1 . . 2 . . . . . . . . . . . 1 . . . . . . . . . . . . Hauler 5 | . 2 . . 2 . . . . . . . . . . . 1 . . . . . . . . . . . . Recycler 13 | 1 . . . 1 1 . . . . . . . . 1 . 1 1 . . . . . . . 7 . . . Mechanic 2 | . . . . 1 . . . . . . . . . . . 1 . . . . . . . . . . . . Operator 4 | . . . . 2 1 . . . . . . . . . . . 1 . . . . . . . . . . . Drone 1 | . . . . . . . . . . . 1 . . . . . . . . . . . . . . . . . Watcher 18 | . 3 . . 5 3 . 1 . . . . 1 . . . 1 . . . . . . . . 3 . . 1 Swarmer 67 | . 6 3 3 12 . . . . . . 6 . . 5 . 14 3 . . . 5 . . . . . . 10 Grunt 19 | . 6 . 1 11 . . . . . . . . . . . . . . . . . . . . . . . 1 Duelist 1 | . . . . 1 . . . . . . . . . . . . . . . . . . . . . . . . Researcher 1 | . . . . . . . . . . . . . . . . . . . . . . . . . 1 . . . Sentry 10 | . . . 1 9 . . . . . . . . . . . . . . . . . . . . . . . . Hunter 3 | . . . . 1 . . . . . . . . . . . . . . . . . . 2 . . . . . Programmer 2 | . . . . . . . . . . . . . . 1 . . . . . . . . . . . . . 1 Artisan 1 | . . . 1 . . . . . . . . . . . . . . . . . . . . . . . . . Subdweller 5 | . . . 5 . . . . . . . . . . . . . . . . . . . . . . . . . Best Kill Streak 12 | 2 3 3 3 8 1 . 1 . . . 6 1 . 5 . 12 4 . . . 5 . 1 . 6 . . 8 Combat Bots Only 11 | . 3 3 3 7 . . . . . . 6 . . 5 . 11 3 . . . 5 . 1 . . . . 6 Max Kills in Single Turn 4 | 1 1 3 1 2 1 . 1 . . . 3 1 . 4 . 4 2 . . . 3 . 1 . 1 . . 4 Gunslinging . | . . . . . . . . . . . . . . . . . . . . . . . . . . . . . Exploded 4 | . . 3 . 1 . . . . . . 3 . . 4 . 4 2 . . . 3 . 1 . . . . 4 Melee 1 | . . . . . . . . . . . . . . 1 . . . . . . . . . . . . . . Uniques/NPCs Destroyed . | . . . . . . . . . . . . . . . . . . . . . . . . . . . . . Combat | -11 -10 -10 -10 -8 -7 -7 -7 -7 -7 -7 -6 -6 -6 -5 -5 -5 -4 -4 -4 -4 -4 -4 -3 -3 -3 -2 -1 -1 -------- Run | Yrd Mat Min Sub Mat Fac Was Fac Low Low Zio Pro Fac Ext Fac Was Fac Fac Was Fac Upp Upp War Pro Res Tes Res Acc Com Hostile Shots Fired 775 | . 77 6 50 127 19 . 9 . . . 16 15 54 68 . 60 65 . 8 . 8 10 8 7 6 . 33 129 Missed 330 | . 17 1 18 31 17 . 7 . . . 10 10 42 28 . 24 27 . 6 . 3 7 6 3 . . 21 52 Damage Taken 9255 | . 553 55 474 1494 45 . 56 . . . 88 33 108 824 . 930 715 . 27 . 101 65 18 92 74 . 260 3243 Core 2917 | . 98 23 77 115 9 . 16 . . . 37 . 30 365 . 223 216 . . . 45 . . 44 14 . 43 1562 Absorbed by Shields 32 | . . . . . . . . . . . . . . . . 15 17 . . . . . . . . . . . Redirected to Shielding 741 | . . . . . . . . . . . . . 14 135 . 177 71 . 23 . . 18 . 42 . . 37 224 Regen/Repaired (Parts) 1083 | . . . . 74 . . 9 . . . . 62 . . . 391 159 . 289 . . 5 . . . . . 94 Core Remaining (%) 77 | 100 . . 20 79 . . . . . . 91 . 96 . . 41 . . . . . . 77 . 95 100 . . Volleys Fired 270 | 4 53 1 31 126 1 . . . . . 17 . . 2 . 6 2 . . . 3 1 11 . . . . 12 Largest 2 | 2 2 1 2 2 1 . . . . . 1 . . 1 . 1 1 . . . 1 1 1 . . . . 1 Hottest 133 | 100 115 30 74 133 30 . . . . . 30 . . 30 . 80 80 . . . 80 40 80 . . . . 55 Shots Fired 440 | 8 99 1 53 223 1 . 1 . . . 17 . . 2 . 6 2 . . . 3 1 11 . . . . 12 Gun 203 | 8 93 . . 100 . . 1 . . . . . . . . . . . . . . 1 . . . . . . Cannon 177 | . . . 53 123 . . . . . . . . . . . 1 . . . . . . . . . . . . Launcher 53 | . . 1 . . . . . . . . 17 . . 2 . 5 2 . . . 3 . 11 . . . . 12 Special 7 | . 6 . . . 1 . . . . . . . . . . . . . . . . . . . . . . . Kinetic 159 | . . . 53 105 . . . . . . . . . . . 1 . . . . . . . . . . . . Thermal 228 | 8 99 . . 118 1 . 1 . . . . . . . . . . . . . . 1 . . . . . . Explosive 53 | . . 1 . . . . . . . . 17 . . 2 . 5 2 . . . 3 . 11 . . . . 12 Electromagnetic . | . . . . . . . . . . . . . . . . . . . . . . . . . . . . . Robot Hit Streak 23 | 6 12 . 10 23 . . . . . . 3 . . 1 . 2 . . . . . . . . . . . 2 Robot Miss Streak 4 | . 3 1 3 4 . . 1 . . . . . . 1 . . . . . . . . . . . . . 1 Penetration Max . | . . . . . . . . . . . . . . . . . . . . . . . . . . . . . Secondary Targets . | . . . . . . . . . . . . . . . . . . . . . . . . . . . . . Shots Hit Robots 311 | 6 64 . 32 148 10 . 2 . . . 3 3 . 10 . 9 2 . . . . . . . 15 . . 7 Core Hits 210 | 3 26 3 16 69 4 . 1 . . . 9 1 . 9 . 17 4 . . . 5 . 8 . 11 . . 24 Critical Kills 1 | . . . . 1 . . . . . . . . . . . . . . . . . . . . . . . . Critical Parts Destroyed 1 | . . . . 1 . . . . . . . . . . . . . . . . . . . . . . . . Critical Strikes 10 | . . . 2 2 1 . 1 . . . . . . . . . 1 . . . . . . . 2 . . 1 Destroy 2 | . . . . 2 . . . . . . . . . . . . . . . . . . . . . . . . Blast 2 | . . . 2 . . . . . . . . . . . . . . . . . . . . . . . . . Impale 6 | . . . . . 1 . 1 . . . . . . . . . 1 . . . . . . . 2 . . 1 Melee Attacks 413 | . . 11 2 9 94 . 20 1 1 1 . 78 3 29 . 45 18 . 5 4 2 13 . 8 43 2 6 18 Impact . | . . . . . . . . . . . . . . . . . . . . . . . . . . . . . Slashing 66 | . . 11 2 9 15 . . . . . . . . 29 . . . . . . . . . . . . . . Piercing 347 | . . . . . 79 . 20 1 1 1 . 78 3 . . 45 18 . 5 4 2 13 . 8 43 2 6 18 Sneak Attacks 25 | . . . 2 2 2 . . . . . . . . 2 . 7 1 . . . . . . . 9 . . . Combat Hostiles . | . . . . . . . . . . . . . . . . . . . . . . . . . . . . . Follow-up Attacks . | . . . . . . . . . . . . . . . . . . . . . . . . . . . . . Damage Inflicted 13532 | 74 871 134 709 3171 438 . 85 . . . 351 118 . 604 . 1786 433 . . . 476 . 871 . 1099 . . 2312 Guns 1929 | 74 871 . . 984 . . . . . . . . . . . . . . . . . . . . . . . . Cannons 2614 | . . . 607 2007 . . . . . . . . . . . . . . . . . . . . . . . . Explosions 5664 | . . 134 . . . . . . . . 351 . . 269 . 1162 313 . . . 476 . 871 . . . . 2088 Melee 3325 | . . . 102 180 438 . 85 . . . . 118 . 335 . 624 120 . . . . . . . 1099 . . 224 Ramming . | . . . . . . . . . . . . . . . . . . . . . . . . . . . . . Kinetic 1642 | . . . 607 1035 . . . . . . . . . . . . . . . . . . . . . . . . Thermal 2901 | 74 871 . . 1956 . . . . . . . . . . . . . . . . . . . . . . . . Explosive 5664 | . . 134 . . . . . . . . 351 . . 269 . 1162 313 . . . 476 . 871 . . . . 2088 Electromagnetic . | . . . . . . . . . . . . . . . . . . . . . . . . . . . . . Impact . | . . . . . . . . . . . . . . . . . . . . . . . . . . . . . Slashing 789 | . . . 102 180 172 . . . . . . . . 335 . . . . . . . . . . . . . . Piercing 2536 | . . . . . 266 . 85 . . . . 118 . . . 624 120 . . . . . . . 1099 . . 224 Highest Corruption 12 | . . . . . 2 2 1 1 . . . . . 7 9 12 5 5 5 5 5 5 . . 4 . . 6 Average Corruption 4 | . . . . . 1 1 1 1 . . . . . 5 8 9 3 5 5 5 5 5 . . 4 . . 1 Corruption Purged 10 | . . . . . . 2 . 1 . . . . . 6 1 . . . . . . . . . . . . . Corruption Blocked 46 | . . . . . . . . . . . . . . . . . . . . . . 26 . . . 20 . . Effects 183 | . . . . . 18 1 7 1 . . . . . 17 1 70 11 3 12 21 4 1 . . 15 . . 1 Message Errors 40 | . . . . . 2 . 2 . . . . . . 3 . 17 4 . 3 4 3 . . . 2 . . . Matter Fused 57 | . . . . . 5 1 . . . . . . . 4 1 26 2 1 5 9 . . . . 3 . . . Heat Flow Errors 25 | . . . . . 6 . 1 . . . . . . 5 . 5 3 1 3 . . . . . . . . 1 Energy Discharges 21 | . . . . . 3 . 1 . . . . . . 2 . 8 1 . . 3 . . . . 3 . . . Parts Rejected 2 | . . . . . . . 1 . . . . . . . . . . . . 1 . . . . . . . . Parts Fused 2 | . . . . . . . . . . . . . . . . . . . . 1 1 . . . . . . . Data Loss (minor) 25 | . . . . . 1 . . . . . . . . 3 . 11 1 1 . 3 . . . . 5 . . . Data Loss (major) 6 | . . . . . . . 1 . . . . . . . . 2 . . 1 . . . . . 2 . . . Misfires 1 | . . . . . . . 1 . . . . . . . . . . . . . . . . . . . . . Alerts 3 | . . . . . 1 . . 1 . . . . . . . . . . . . . 1 . . . . . . Misdirections 1 | . . . . . . . . . . . . . . . . 1 . . . . . . . . . . . . Overload Shots . | . . . . . . . . . . . . . . . . . . . . . . . . . . . . . Overflow Damage 909 | . . . 25 13 105 . . . . . . . . 15 . 170 137 . . . 22 . 60 . 234 . . 128 Projectiles 17 | . . . 4 13 . . . . . . . . . . . . . . . . . . . . . . . . Explosions 150 | . . . . . . . . . . . . . . . . 31 11 . . . 22 . 60 . . . . 26 Melee 742 | . . . 21 . 105 . . . . . . . . 15 . 139 126 . . . . . . . 234 . . 102 Knockbacks 12 | . . . 11 1 . . . . . . . . . . . . . . . . . . . . . . . . Impact . | . . . . . . . . . . . . . . . . . . . . . . . . . . . . . Kinetic 12 | . . . 11 1 . . . . . . . . . . . . . . . . . . . . . . . . Secondary . | . . . . . . . . . . . . . . . . . . . . . . . . . . . . . Self-Inflicted Damage 231 | . . 15 . . . . . . . . 9 . . . . 86 4 . . . . . . . . . . 117 Shots 5 | . . 1 . . . . . . . . 1 . . . . 1 1 . . . . . . . . . . 1 Rammed . | . . . . . . . . . . . . . . . . . . . . . . . . . . . . . Targets Rammed . | . . . . . . . . . . . . . . . . . . . . . . . . . . . . . Kicked . | . . . . . . . . . . . . . . . . . . . . . . . . . . . . . Crushed . | . . . . . . . . . . . . . . . . . . . . . . . . . . . . . Highest Temperature 350 | 156 350 . . 200 270 . 129 . . . . . . 206 . 261 246 227 236 . 40 . 86 . . . 40 115 Average Temperature 60 | 79 109 . . 35 107 . 76 . . . . . . 85 . 71 91 116 117 . 20 . 30 . . . 11 25 Received Heat Transfer 918 | . 150 . 42 414 . . 6 . . . . 6 30 36 . 108 . . . . 18 9 . 18 . . . 81 Effects 2 | . 2 . . . . . . . . . . . . . . . . . . . . . . . . . . . Energy Bleed 1 | . 1 . . . . . . . . . . . . . . . . . . . . . . . . . . . Interference 1 | . 1 . . . . . . . . . . . . . . . . . . . . . . . . . . . Siege Activations . | . . . . . . . . . . . . . . . . . . . . . . . . . . . . . Robots Corrupted . | . . . . . . . . . . . . . . . . . . . . . . . . . . . . . Combat Hostiles . | . . . . . . . . . . . . . . . . . . . . . . . . . . . . . Parts Fried . | . . . . . . . . . . . . . . . . . . . . . . . . . . . . . Impact Corruptions . | . . . . . . . . . . . . . . . . . . . . . . . . . . . . . Robots Melted . | . . . . . . . . . . . . . . . . . . . . . . . . . . . . . Combat Hostiles . | . . . . . . . . . . . . . . . . . . . . . . . . . . . . . Parts Melted 16 | 1 11 . . 4 . . . . . . . . . . . . . . . . . . . . . . . . Heat Transferred 5564 | 222 2345 . . 2997 . . . . . . . . . . . . . . . . . . . . . . . . Parts Sabotaged . | . . . . . . . . . . . . . . . . . . . . . . . . . . . . . Parts Stolen . | . . . . . . . . . . . . . . . . . . . . . . . . . . . . . Parts Stripped . | . . . . . . . . . . . . . . . . . . . . . . . . . . . . . Power Chain Reactions . | . . . . . . . . . . . . . . . . . . . . . . . . . . . . . Alert | -11 -10 -10 -10 -8 -7 -7 -7 -7 -7 -7 -6 -6 -6 -5 -5 -5 -4 -4 -4 -4 -4 -4 -3 -3 -3 -2 -1 -1 ------- Run | Yrd Mat Min Sub Mat Fac Was Fac Low Low Zio Pro Fac Ext Fac Was Fac Fac Was Fac Upp Upp War Pro Res Tes Res Acc Com Peak Influence 805 | 10 186 101 . 537 374 46 407 . . . . 415 98 415 68 502 341 27 97 . . . . 31 231 72 199 805 Initial 413 | . 6 6 . . 239 46 32 . . . . 413 2 25 53 47 144 27 18 . . . . . 17 21 43 121 Average 182 | 7 60 49 . 348 185 46 158 . . . . 113 52 170 60 223 158 27 47 . . . . 8 87 64 101 240 Maximum Alert Level 3 | . . . . 2 1 . 2 . . . . 2 . 2 . 2 1 . . . . . . . 1 . . 3 Low Security (%) 62 | 100 100 100 . 17 63 100 46 . . . . 84 100 52 100 39 94 100 100 . . . . 100 93 100 100 56 Level 1 24 | . . . . 34 36 . 50 . . . . 10 . 36 . 56 5 . . . . . . . 6 . . 17 Level 2 12 | . . . . 48 . . 3 . . . . 4 . 10 . 3 . . . . . . . . . . . 21 Level 3 . | . . . . . . . . . . . . . . . . . . . . . . . . . . . . 3 Level 4 . | . . . . . . . . . . . . . . . . . . . . . . . . . . . . . Level 5 . | . . . . . . . . . . . . . . . . . . . . . . . . . . . . . High Security . | . . . . . . . . . . . . . . . . . . . . . . . . . . . . . Max Security . | . . . . . . . . . . . . . . . . . . . . . . . . . . . . . Squads Dispatched 72 | . 1 . . 3 15 . 4 . . . . 11 . 6 . 11 4 . 2 . . . . 1 3 1 5 5 Investigation 41 | . 1 . . 1 11 . 1 . . . . 6 . 4 . 8 2 . 1 . . . . . . 1 3 2 Extermination 17 | . . . . . 2 . 1 . . . . 4 . 1 . 3 2 . 1 . . . . . 2 . . 1 Reinforcement 9 | . . . . 2 2 . . . . . . 1 . 1 . . . . . . . . . 1 1 . . 1 Assault 1 | . . . . . . . . . . . . . . . . . . . . . . . . . . . . 1 Garrison 4 | . . . . . . . 2 . . . . . . . . . . . . . . . . . . . 2 . Intercept . | . . . . . . . . . . . . . . . . . . . . . . . . . . . . . Searches Triggered . | . . . . . . . . . . . . . . . . . . . . . . . . . . . . . Construction Impeded . | . . . . . . . . . . . . . . . . . . . . . . . . . . . . . Haulers Reinforced . | . . . . . . . . . . . . . . . . . . . . . . . . . . . . . Active Scanning Responses . | . . . . . . . . . . . . . . . . . . . . . . . . . . . . . Cargo Convoy Interrupts 1 | . . . . . . . 1 . . . . . . . . . . . . . . . . . . . . . Stealth | -11 -10 -10 -10 -8 -7 -7 -7 -7 -7 -7 -6 -6 -6 -5 -5 -5 -4 -4 -4 -4 -4 -4 -3 -3 -3 -2 -1 -1 --------- Run | Yrd Mat Min Sub Mat Fac Was Fac Low Low Zio Pro Fac Ext Fac Was Fac Fac Was Fac Upp Upp War Pro Res Tes Res Acc Com Distress Signals 31 | . . 2 . 5 5 . 2 . . . 1 . 1 1 . 1 2 . . . . 1 . . . 5 . 5 Communications Jammed . | . . . . . . . . . . . . . . . . . . . . . . . . . . . . . Distress Signals . | . . . . . . . . . . . . . . . . . . . . . . . . . . . . . Times Spotted 464 | . 17 3 11 62 55 . 14 . . . 12 22 12 30 3 46 27 . 9 3 5 37 6 8 10 1 19 52 Peak Tracking Total 13 | . 3 3 3 5 6 . 3 . . . 9 4 7 8 3 8 8 . 8 3 6 8 4 7 2 1 11 13 Tactical Retreats 92 | . 2 . 1 4 18 . . . . . 2 6 3 5 . 13 6 . . 1 3 10 2 1 . . 4 11 Traps | -11 -10 -10 -10 -8 -7 -7 -7 -7 -7 -7 -6 -6 -6 -5 -5 -5 -4 -4 -4 -4 -4 -4 -3 -3 -3 -2 -1 -1 ------- Run | Yrd Mat Min Sub Mat Fac Was Fac Low Low Zio Pro Fac Ext Fac Was Fac Fac Was Fac Upp Upp War Pro Res Tes Res Acc Com Traps Triggered 16 | . 1 . . 1 3 . 1 . . . . . 1 3 . 3 3 . . . . . . . . . . . Indirectly . | . . . . . . . . . . . . . . . . . . . . . . . . . . . . . Trap Hack Attempts 2 | . . . . . . . 2 . . . . . . . . . . . . . . . . . . . . . Triggered . | . . . . . . . . . . . . . . . . . . . . . . . . . . . . . Disarmed . | . . . . . . . . . . . . . . . . . . . . . . . . . . . . . Reprogrammed 1 | . . . . . . . 1 . . . . . . . . . . . . . . . . . . . . . Reused . | . . . . . . . . . . . . . . . . . . . . . . . . . . . . . Traps Extracted . | . . . . . . . . . . . . . . . . . . . . . . . . . . . . . Installed . | . . . . . . . . . . . . . . . . . . . . . . . . . . . . . Triggered 24 | . . . . . . . . . . . . . . . . . . . . . . 24 . . . . . . Machines | -11 -10 -10 -10 -8 -7 -7 -7 -7 -7 -7 -6 -6 -6 -5 -5 -5 -4 -4 -4 -4 -4 -4 -3 -3 -3 -2 -1 -1 ---------- Run | Yrd Mat Min Sub Mat Fac Was Fac Low Low Zio Pro Fac Ext Fac Was Fac Fac Was Fac Upp Upp War Pro Res Tes Res Acc Com Machines Disabled 19 | . . . . 4 2 . . . . . . . . 1 . 1 1 . . . . . . . 8 . . 2 Max in Single Turn 1 | . . . . 1 1 . . . . . . . . 1 . 1 1 . . . . . . . 1 . . 1 Garrison Access 20 | . . . . 1 4 . 3 . . . . 2 . 2 . 3 2 . 1 . . . . . 1 1 . . Machines Repaired . | . . . . . . . . . . . . . . . . . . . . . . . . . . . . . Machines Dismantled . | . . . . . . . . . . . . . . . . . . . . . . . . . . . . . Machines Sabotaged . | . . . . . . . . . . . . . . . . . . . . . . . . . . . . . Overloaded Fab Kills . | . . . . . . . . . . . . . . . . . . . . . . . . . . . . . Hacking | -11 -10 -10 -10 -8 -7 -7 -7 -7 -7 -7 -6 -6 -6 -5 -5 -5 -4 -4 -4 -4 -4 -4 -3 -3 -3 -2 -1 -1 --------- Run | Yrd Mat Min Sub Mat Fac Was Fac Low Low Zio Pro Fac Ext Fac Was Fac Fac Was Fac Upp Upp War Pro Res Tes Res Acc Com Machines Accessed 194 | . 7 . . 15 24 . 17 . 3 . . 21 4 17 . 21 7 . 8 . . 14 1 2 9 4 10 10 Terminals 106 | . 5 . . 11 12 . 9 . . . . 12 4 8 . 9 3 . 4 . . . 1 2 7 2 8 9 Fabricators 19 | . . . . . 6 . 2 . . . . 3 . 2 . 4 . . . . . . . . . 1 1 . Repair Stations 16 | . . . . 1 . . . . . . . 3 . 2 . 4 2 . 3 . . . . . . . . 1 Recycling Units 11 | . 2 . . . 2 . 3 . . . . 1 . 2 . 1 . . . . . . . . . . . . Scanalyzers 4 | . . . . 2 . . . . . . . . . 1 . . . . . . . . . . 1 . . . Garrison Access 21 | . . . . 1 4 . 3 . . . . 2 . 2 . 3 2 . 1 . . . . . 1 1 1 . Total Hacks 480 | . 15 . . 36 75 . 36 . 8 . . 52 5 41 . 50 17 . 22 . . 25 1 5 16 14 24 38 Successful 387 | . 6 . . 19 53 . 33 . 8 . . 39 4 39 . 48 17 . 21 . . 25 1 5 14 11 17 27 Failed 90 | . 9 . . 17 22 . 2 . . . . 12 1 1 . 2 . . 1 . . . . . 2 3 7 11 Catastrophic 7 | . . . . 3 1 . . . . . . . . . . . . . . . . . . . . . 2 1 Database Lockouts 3 | . . . . . . . 1 . . . . 1 . 1 . . . . . . . . . . . . . . Manual 220 | . 13 . . 21 34 . 19 . . . . 26 3 12 . 22 6 . 4 . . . . 1 10 7 12 30 Terminals 288 | . 13 . . 25 42 . 20 . . . . 33 5 23 . 25 7 . 9 . . . 1 5 14 11 20 35 Fabricators 41 | . . . . . 14 . 3 . . . . 7 . 5 . 9 . . . . . . . . . 2 1 . Repair Stations 41 | . . . . 2 . . . . . . . 6 . 2 . 8 8 . 12 . . . . . . . . 3 Recycling Units 35 | . 2 . . . 13 . 10 . . . . 2 . 3 . 5 . . . . . . . . . . . . Scanalyzers 13 | . . . . 6 . . . . . . . . . 6 . . . . . . . . . . 1 . . . Garrison Access 29 | . . . . 3 6 . 3 . . . . 4 . 2 . 3 2 . 1 . . . . . 1 1 3 . Terminal Hacks 184 | . 1 . . 2 19 . 12 . 8 . . 17 3 15 . 17 5 . 7 . . 25 1 5 10 7 12 18 Record 36 | . . . . . . . . . 6 . . . . . . 1 . . . . . 23 1 2 . 1 1 1 Part Schematic 15 | . 1 . . . 4 . 1 . . . . 1 . 3 . 2 . . 2 . . . . . 1 . . . Robot Schematic 1 | . . . . . . . 1 . . . . . . . . . . . . . . . . . . . . . Robot Analysis 13 | . . . . . 1 . . . . . . . . 2 . 1 . . . . . . . . 1 2 3 3 Open Door 11 | . . . . . . . . . 2 . . 1 3 . . . . . . . . 2 . . . . 3 . Level Access Points 5 | . . . . . . . . . . . . . . . . . 1 . 1 . . . . . 1 1 1 . Branch Access Points 9 | . . . . . 1 . 1 . . . . . . 1 . 1 1 . 1 . . . . 1 . 1 1 . Emergency Access Points 1 | . . . . . . . . . . . . . . . . . 1 . . . . . . . . . . . Machine Index 12 | . . . . . 1 . 1 . . . . 1 . 1 . 1 1 . 1 . . . . 1 1 1 1 1 Terminal Index 3 | . . . . . 1 . 1 . . . . . . . . 1 . . . . . . . . . . . . Recycling Unit Index 1 | . . . . . . . . . . . . . . . . 1 . . . . . . . . . . . . Alert Level 7 | . . . . . . . 1 . . . . 2 . 2 . 1 . . . . . . . . . . . 1 Unreport Threat 13 | . . . . 1 3 . 2 . . . . 2 . . . 1 . . . . . . . . . . . 4 Locate Traps 1 | . . . . . . . 1 . . . . . . . . . . . . . . . . . . . . . Dispatch Records 1 | . . . . . . . . . . . . . . 1 . . . . . . . . . . . . . . Maintenance Status 3 | . . . . . . . 1 . . . . . . 1 . . . . . . . . . 1 . . . . Security Status 1 | . . . . . . . . . . . . . . . . . . . . . . . . . . . . 1 Patrol Status 4 | . . . . . . . . . . . . . . . . . . . . . . . . . . . 1 3 Extermination Status 1 | . . . . . . . . . . . . . . 1 . . . . . . . . . . . . . . Recall Investigation 17 | . . . . . 5 . 1 . . . . 3 . 2 . 4 . . 1 . . . . . . 1 . . Recall Extermination 16 | . . . . . 2 . 1 . . . . 4 . 1 . 3 1 . 1 . . . . . 2 . . 1 Recall Reinforcements 3 | . . . . . . . . . . . . 1 . . . . . . . . . . . . 1 . . 1 Recall Assault 2 | . . . . . . . . . . . . . . . . . . . . . . . . . 1 . . 1 Hauler Manifests 1 | . . . . 1 . . . . . . . . . . . . . . . . . . . . . . . . Zone Layout 6 | . . . . . 1 . . . . . . 2 . . . . . . . . . . . . 2 . 1 . Disengage Seal 1 | . . . . . . . . . . . . . . . . . . . . . . . . . . . . 1 Fabricator Hacks 41 | . . . . . 14 . 3 . . . . 7 . 5 . 9 . . . . . . . . . 2 1 . Network Status 6 | . . . . . 1 . 1 . . . . 1 . 1 . 1 . . . . . . . . . . 1 . Load Schematic 18 | . . . . . 7 . 1 . . . . 3 . 2 . 4 . . . . . . . . . 1 . . Build 17 | . . . . . 6 . 1 . . . . 3 . 2 . 4 . . . . . . . . . 1 . . Repair Station Hacks 40 | . . . . 2 . . . . . . . 6 . 2 . 8 8 . 12 . . . . . . . . 2 Scan Component 19 | . . . . 1 . . . . . . . 3 . . . 4 4 . 6 . . . . . . . . 1 Repair 19 | . . . . 1 . . . . . . . 3 . . . 4 4 . 6 . . . . . . . . 1 Refit 2 | . . . . . . . . . . . . . . 2 . . . . . . . . . . . . . . Recycling Unit Hacks 16 | . 2 . . . 5 . 3 . . . . 2 . 3 . 1 . . . . . . . . . . . . Report Inventory 12 | . 2 . . . 3 . 3 . . . . 1 . 2 . 1 . . . . . . . . . . . . Retrieve Components 4 | . . . . . 2 . . . . . . 1 . 1 . . . . . . . . . . . . . . Scanalyzer 12 | . . . . 6 . . . . . . . . . 6 . . . . . . . . . . . . . . Insert Component 6 | . . . . 3 . . . . . . . . . 3 . . . . . . . . . . . . . . Analyze 6 | . . . . 3 . . . . . . . . . 3 . . . . . . . . . . . . . . Garrison Access Hacks 20 | . . . . 1 4 . 3 . . . . 2 . 2 . 3 2 . 1 . . . . . 1 1 . . Seal Access 20 | . . . . 1 4 . 3 . . . . 2 . 2 . 3 2 . 1 . . . . . 1 1 . . Unauthorized Hacks 74 | . 3 . . 8 11 . 12 . . . . 5 1 6 . 10 2 . 1 . . . . . 3 1 4 7 Terminals 58 | . 3 . . 8 9 . 5 . . . . 5 1 6 . 6 2 . 1 . . . . . 2 1 2 7 Track 4 | . . . . . . . . . . . . . . . . . . . . . . . . . . . . 4 Assimilate 29 | . . . . 4 3 . 4 . . . . 3 . 3 . 3 1 . 1 . . . . . 2 1 2 2 Botnet 16 | . 2 . . 2 5 . . . . . . 1 . 2 . 3 1 . . . . . . . . . . . Disrupt 1 | . . . . . . . . . . . . . 1 . . . . . . . . . . . . . . . Operators 8 | . 1 . . 2 1 . 1 . . . . 1 . 1 . . . . . . . . . . . . . 1 Fabricators . | . . . . . . . . . . . . . . . . . . . . . . . . . . . . . Repair Stations . | . . . . . . . . . . . . . . . . . . . . . . . . . . . . . Recycling Units 13 | . . . . . 2 . 7 . . . . . . . . 4 . . . . . . . . . . . . Monitor 2 | . . . . . . . 1 . . . . . . . . 1 . . . . . . . . . . . . Reject 3 | . . . . . . . 2 . . . . . . . . 1 . . . . . . . . . . . . Recyclers 3 | . . . . . 1 . 1 . . . . . . . . 1 . . . . . . . . . . . . Mask 5 | . . . . . 1 . 3 . . . . . . . . 1 . . . . . . . . . . . . Scanalyzers 1 | . . . . . . . . . . . . . . . . . . . . . . . . . 1 . . . Researchers 1 | . . . . . . . . . . . . . . . . . . . . . . . . . 1 . . . Garrison Access 2 | . . . . . . . . . . . . . . . . . . . . . . . . . . . 2 . Reprogram 1 | . . . . . . . . . . . . . . . . . . . . . . . . . . . 1 . Watchers 1 | . . . . . . . . . . . . . . . . . . . . . . . . . . . 1 . Data Cores Recovered . | . . . . . . . . . . . . . . . . . . . . . . . . . . . . . Used . | . . . . . . . . . . . . . . . . . . . . . . . . . . . . . Hacking Detections 98 | . 5 . . 12 12 . 8 . . . . 12 . 6 . 13 3 . 6 . . . 1 2 6 3 3 6 Full Trace Events 34 | . . . . . 10 . 1 . . . . 6 . 4 . 8 1 . 1 . . . . . . 1 1 1 Feedback Events 3 | . . . . . 1 . . . . . . . . . . 1 1 . . . . . . . . . . . Corruption 2 | . . . . . 1 . . . . . . . . . . . 1 . . . . . . . . . . . Hackware Fried 1 | . . . . . . . . . . . . . . . . 1 . . . . . . . . . . . . Feedback Blocked 1 | . . . . . . . . . . . . . . . . . . . . . . . . . . . 1 . Robot Schematics Acquired 5 | . . . . . . . 1 . . 4 . . . . . . . . . . . . . . . . . . Robots Built . | . . . . . . . . . . . . . . . . . . . . . . . . . . . . . Authchips . | . . . . . . . . . . . . . . . . . . . . . . . . . . . . . Time . | . . . . . . . . . . . . . . . . . . . . . . . . . . . . . Total Robot Build Rating . | . . . . . . . . . . . . . . . . . . . . . . . . . . . . . Part Schematics Acquired 38 | . 1 . . 3 4 . 1 . . 15 . 1 . 6 . 2 . . 2 . . . . . 3 . . . Parts Built 18 | . . . . . 6 . 1 . . . . 3 . 3 . 4 . . . . . . . . . 1 . . Authchips . | . . . . . . . . . . . . . . . . . . . . . . . . . . . . . Time 1372 | . . . . . 373 . 50 . . . . 299 . 122 . 306 . . . . . . . . . 222 . . Total Part Build Rating 99 | . . . . . 33 . 5 . . . . 10 . 23 . 19 . . . . . . . . . 9 . . Parts Repaired 19 | . . . . 1 . . . . . . . 3 . . . 4 4 . 6 . . . . . . . . 1 Time 751 | . . . . 26 . . . . . . . 51 . . . 188 251 . 209 . . . . . . . . 26 Parts Recycled . | . . . . . . . . . . . . . . . . . . . . . . . . . . . . . Recycled Matter . | . . . . . . . . . . . . . . . . . . . . . . . . . . . . . Retrieved Matter . | . . . . . . . . . . . . . . . . . . . . . . . . . . . . . Retrieved Components 11 | . . . . . 7 . . . . . . 3 . 1 . . . . . . . . . . . . . . Parts Scanalyzed 6 | . . . . 3 . . . . . . . . . 3 . . . . . . . . . . . . . . Part Schematics Acquired 6 | . . . . 3 . . . . . . . . . 3 . . . . . . . . . . . . . . Parts Damaged 1 | . . . . . . . . . . . . . . 1 . . . . . . . . . . . . . . Bothacking | -11 -10 -10 -10 -8 -7 -7 -7 -7 -7 -7 -6 -6 -6 -5 -5 -5 -4 -4 -4 -4 -4 -4 -3 -3 -3 -2 -1 -1 ------------ Run | Yrd Mat Min Sub Mat Fac Was Fac Low Low Zio Pro Fac Ext Fac Was Fac Fac Was Fac Upp Upp War Pro Res Tes Res Acc Com Used RIF Installer . | . . . . . . . . . . . . . . . . . . . . . . . . . . . . . Robots Hacked . | . . . . . . . . . . . . . . . . . . . . . . . . . . . . . Non-combat . | . . . . . . . . . . . . . . . . . . . . . . . . . . . . . Combat . | . . . . . . . . . . . . . . . . . . . . . . . . . . . . . Robot Hacks Applied . | . . . . . . . . . . . . . . . . . . . . . . . . . . . . . Relay Couplers Released . | . . . . . . . . . . . . . . . . . . . . . . . . . . . . . Fabnet Peak Effective % . | . . . . . . . . . . . . . . . . . . . . . . . . . . . . . Robots Rewired 2 | . . . . . . . . . . . . . . . . . . . . . . 1 . . . . . 1 Allies Hacked 2 | . . . . . 1 . 1 . . . . . . . . . . . . . . . . . . . . . Hacks Repelled . | . . . . . . . . . . . . . . . . . . . . . . . . . . . . . Allies | -11 -10 -10 -10 -8 -7 -7 -7 -7 -7 -7 -6 -6 -6 -5 -5 -5 -4 -4 -4 -4 -4 -4 -3 -3 -3 -2 -1 -1 -------- Run | Yrd Mat Min Sub Mat Fac Was Fac Low Low Zio Pro Fac Ext Fac Was Fac Fac Was Fac Upp Upp War Pro Res Tes Res Acc Com Total Allies 59 | . . . . 1 3 20 4 . . . . 3 5 6 . 3 1 . . . . 1 . . 2 1 6 3 Largest Group 21 | . . . . 1 2 21 21 2 2 2 2 2 2 3 . 3 1 . . . . 1 . . 1 2 6 2 Highest-Rated Group 565 | . . . . 10 36 565 565 36 36 36 36 36 192 93 . 46 10 . . . . 89 . . 45 90 317 90 Highest-Rated Ally 96 | . . . . 10 26 35 35 26 26 26 26 26 96 31 . 26 10 . . . . 89 . . 45 45 58 58 Total Orders 59 | . . . . 10 23 . 3 . 5 . . 6 . 2 . 7 . . . . . 1 . . 2 . . . STAY 33 | . . . . 5 12 . 2 . 3 . . 3 . 2 . 5 . . . . . . . . 1 . . . FOLLOW 25 | . . . . 5 11 . 1 . 2 . . 3 . . . 2 . . . . . . . . 1 . . . AID 1 | . . . . . . . . . . . . . . . . . . . . . . 1 . . . . . . Ally Attacks 173 | . . . . . . . 98 . . . . . 12 25 . . . . . . . 3 . . . . 34 1 Total Damage 4266 | . . . . . . . 1955 . . . . . 836 395 . . . . . . . 57 . . . . 1023 . Kills 26 | . . . . . . . 15 . . . . . 3 1 . . . . . . . 1 . . . . 6 . Allies Corrupted 5 | . . . . . . . 4 . . . . . . . . 1 . . . . . . . . . . . . Allies Melted 1 | . . . . . . . . . . . . . . . . . . . . . . 1 . . . . . . Intel | -11 -10 -10 -10 -8 -7 -7 -7 -7 -7 -7 -6 -6 -6 -5 -5 -5 -4 -4 -4 -4 -4 -4 -3 -3 -3 -2 -1 -1 ------- Run | Yrd Mat Min Sub Mat Fac Was Fac Low Low Zio Pro Fac Ext Fac Was Fac Fac Was Fac Upp Upp War Pro Res Tes Res Acc Com Robot Analysis Total 13 | . . . . . 1 . . . . . . . . 2 . 1 . . . . . . . . 1 2 3 3 Derelict Logs Recovered 7 | . . 2 1 . . . . 1 . 2 1 . . . . . . . . . . . . . . . . . Drone Launches . | . . . . . . . . . . . . . . . . . . . . . . . . . . . . . Drone Recoveries . | . . . . . . . . . . . . . . . . . . . . . . . . . . . . . Exploration | -11 -10 -10 -10 -8 -7 -7 -7 -7 -7 -7 -6 -6 -6 -5 -5 -5 -4 -4 -4 -4 -4 -4 -3 -3 -3 -2 -1 -1 ------------- Run | Yrd Mat Min Sub Mat Fac Was Fac Low Low Zio Pro Fac Ext Fac Was Fac Fac Was Fac Upp Upp War Pro Res Tes Res Acc Com Turns Passed 27105 | 36 1312 803 1249 4508 2906 190 1115 146 291 466 304 2643 561 1253 29 2129 904 115 374 853 288 1019 1046 167 1106 328 337 627 Spaces Moved 37623 | 12 738 499 830 2265 5615 233 2207 384 579 1188 526 4840 657 2452 72 3343 1379 244 554 617 561 1806 1383 368 1608 333 918 1412 Core 56 | . . . . . . . . . . . . . . 39 . 1 . . . . . . . . . . . 16 Treads 203 | . . . . 187 16 . . . . . . . . . . . . . . . . . . . . . . . Legs 406 | 12 393 . . . . . . . . . . . . . . . . . . . . . . . 1 . . . Wheels 3817 | . 345 499 830 2078 . . . . . . . . . 65 . . . . . . . . . . . . . . Hover . | . . . . . . . . . . . . . . . . . . . . . . . . . . . . . Flight 33141 | . . . . . 5599 233 2207 384 579 1188 526 4840 657 2348 72 3342 1379 244 554 617 561 1806 1383 368 1607 333 918 1396 Fastest Speed 24 | 120 110 110 110 110 32 32 32 32 32 32 32 32 32 32 37 37 37 37 37 37 37 27 27 27 30 26 24 24 Average Speed 44 | 120 116 110 119 140 34 32 32 32 32 32 32 32 32 37 37 38 37 37 37 37 37 31 27 28 30 27 24 26 Slowest Speed 240 | 120 190 110 125 240 240 32 32 32 32 32 32 32 32 100 37 200 37 40 40 37 37 107 27 30 107 106 101 101 Overloaded Moves . | . . . . . . . . . . . . . . . . . . . . . . . . . . . . . Propulsion Burnouts . | . . . . . . . . . . . . . . . . . . . . . . . . . . . . . Robots Hopped 125 | . . . . . 12 . 9 . . . . 32 3 7 . 13 11 . 1 . . 3 . 1 11 1 9 12 Cave-ins Triggered 3 | . . . . . . . . . . . . . . . . 2 . . . . . . . . 1 . . . Exploration Rate (%) 60 | 2 96 89 40 90 85 95 49 54 61 85 50 74 35 62 76 71 33 94 16 68 71 97 84 12 95 17 25 41 Regions Visited 28 Branch Regions 13 Pre-discovered Areas 4 | . . . 1 . . . . . . 2 . . . . . . . . . . . 1 . . . . . . Known Exits Taken 18 | . . . . 1 . . 1 1 1 1 1 1 1 . . 1 . . 1 1 1 1 1 1 1 1 1 . Unknown Exits Taken 4 | 1 1 1 1 . . . . . . . . . . . . . . . . . . . . . . . . . Scrap Searched 12 | . . 1 4 . . . . . 1 2 2 . . . . . . . . 1 1 . . . . . . . Spaces Dug 369 | . 4 2 . 5 58 . 15 1 1 . 103 61 1 18 . 37 11 . 2 4 2 8 . 8 11 2 5 10 Terrain Destroyed 755 | . 4 12 . 22 58 . 15 1 1 . 124 61 1 27 . 113 28 . 2 4 39 8 58 8 11 2 5 151 Melee 257 | . . 2 . 2 58 . 15 1 1 . . 61 1 18 . 35 11 . 2 4 2 8 . 8 11 2 5 10 Projectile 26 | . 4 . . 20 . . . . . . . . . . . 2 . . . . . . . . . . . . AOE 472 | . . 10 . . . . . . . . 124 . . 9 . 76 17 . . . 37 . 58 . . . . 141 Terrain Rammed . | . . . . . . . . . . . . . . . . . . . . . . . . . . . . . Walls Destroyed . | . . . . . . . . . . . . . . . . . . . . . . . . . . . . . Machines Disabled . | . . . . . . . . . . . . . . . . . . . . . . . . . . . . . Actions | -11 -10 -10 -10 -8 -7 -7 -7 -7 -7 -7 -6 -6 -6 -5 -5 -5 -4 -4 -4 -4 -4 -4 -3 -3 -3 -2 -1 -1 --------- Run | Yrd Mat Min Sub Mat Fac Was Fac Low Low Zio Pro Fac Ext Fac Was Fac Fac Was Fac Upp Upp War Pro Res Tes Res Acc Com Total 46822 | 25 1081 728 1023 3357 6423 346 2568 404 681 1271 643 5778 999 2730 73 4102 1730 268 711 1234 632 2224 2040 416 2152 562 1015 1606 Wait 8068 | 8 257 214 150 875 653 112 334 17 100 83 96 867 325 225 1 616 318 12 146 613 65 388 647 39 458 216 92 141 Move 37359 | 11 737 498 829 2264 5591 232 2189 383 578 1187 525 4778 652 2439 71 3316 1357 243 551 616 560 1799 1382 365 1586 330 901 1389 Hop 113 | . . . . . 12 . 8 . . . . 29 1 6 . 13 11 . 1 . . 3 . 1 9 1 7 11 Pick Up 67 | . 11 . 2 15 6 . 1 . . . 1 3 . 1 1 8 3 2 1 . . 1 . 1 2 1 3 4 Fast Attach 127 | 1 2 . 1 23 13 . 1 . . . . 4 . 12 . 18 5 5 4 1 . 6 . . 19 4 2 6 Attach 47 | . 3 . 1 5 9 . 1 . . . 1 2 . 2 . 5 3 . . . . 2 . 1 1 2 2 7 Detach 19 | . . . . 5 2 . 1 . . . . 1 . 1 . 3 1 . . . . 1 . . 1 . . 3 Swap 75 | . 8 4 6 9 8 2 6 2 2 . 2 8 . 5 . 3 . . 2 . 2 1 . . . 2 . 3 Drop 146 | 1 10 . 1 26 26 . 1 1 . . 1 4 . 7 . 16 2 6 1 . . 7 . 1 20 4 2 9 Fire 270 | 4 53 1 31 126 1 . . . . . 17 . . 2 . 6 2 . . . 3 1 11 . . . . 12 Melee 413 | . . 11 2 9 94 . 20 1 1 1 . 78 3 29 . 45 18 . 5 4 2 13 . 8 43 2 6 18 Ram . | . . . . . . . . . . . . . . . . . . . . . . . . . . . . . Kick . | . . . . . . . . . . . . . . . . . . . . . . . . . . . . . Crush . | . . . . . . . . . . . . . . . . . . . . . . . . . . . . . Escape Stasis 92 | . . . . . . . . . . . . . 18 . . 51 10 . . . . . . . 13 . . . Rewire 5 | . . . . . . . . . . . . . . . . . . . . . . 2 . . . . . 3 Trap 2 | . . . . . . . 2 . . . . . . . . . . . . . . . . . . . . . Miscellaneous 19 | . . . . . 8 . 4 . . . . 4 . 1 . 2 . . . . . . . . . . . . Route ------- -11/Scrapyard -10/Materials (discovered 5 exits: [*Mat x3] / [*Min x2]) -10/Mines (discovered 2 exits: [*Mat] / [*Sub]) -10/Subcaves -8/Materials (discovered 2 exits: *Fac x2) -7/Factory (discovered 8 exits: *Fac x4 / *Sto x2 / *Low x2) -7/Waste -7/Factory (discovered 4 exits: *Fac / Sto / *Low x2) -7/Lower Caves -7/Lower Caves (discovered 2 exits: *Fac / *Zio) -7/Zion -6/Proximity Caves -6/Factory (discovered 7 exits: *Fac x4 / *Low / *Ext x2) -6/Extension -5/Factory (discovered 5 exits: *Fac x3 / *Upp x2) -5/Waste -5/Factory (discovered 5 exits: *Fac x3 / *Upp x2) -4/Factory (discovered 6 exits: Res x4 / *Upp x2) -4/Waste -4/Factory (discovered 6 exits: *Res x4 / *Upp x2) -4/Upper Caves -4/Upper Caves (discovered 2 exits: *Res / *War) -4/Warlord -3/Proximity Caves -3/Research (discovered 3 exits: Arm / *Tes x2) -3/Testing -2/Research (discovered 5 exits: *Acc x3 / Qua x2) -1/Access (discovered 2 exits: Sur / *Com) -1/Command History --------- Turn | Location | Event 16 | -11/Scrapyard | Discovered new exit (range 3) 37 | -11/Scrapyard | Entered Materials 266 | -10/Materials | Discovered new exit (range 15) 316 | -10/Materials | Build established: Mutant 482 | -10/Materials | Discovered new exit (range 16) 710 | -10/Materials | Build established: Scavenger-Mutant 778 | -10/Materials | Discovered new exit (range 10) 928 | -10/Materials | Discovered new exit (range 16) 1051 | -10/Materials | Discovered new exit (range 10) 1090 | -10/Materials | Build established: Mutant 1349 | -10/Materials | Entered Mines 1460 | -10/Mines | Learned Materials interactive machine intel 1462 | -10/Mines | Assembled infested the area 1467 | -10/Mines | Assisted by a Guerilla fighting off Assembled 1688 | -10/Mines | Discovered new exit (range 11) 1852 | -10/Mines | Learned 4 Materials zone layouts 2100 | -10/Mines | Discovered new exit (range 3) 2152 | -10/Mines | Entered Subcaves 2206 | -10/Subcaves | Learned location of Zion (-7) 2206 | -10/Subcaves | Met a Zionite searching for "candidates" 2378 | -10/Subcaves | Shifting Twisted Machinery released Sub. Monowheel 2383 | -10/Subcaves | Shifting Twisted Machinery released Battle Rifle 2528 | -10/Subcaves | Shifting Twisted Machinery released Sub. Beam Cannon 2555 | -10/Subcaves | Shifting Twisted Machinery released Sub. Laser 2759 | -10/Subcaves | Discovered new exit (range 13) 2772 | -10/Subcaves | Core integrity fell below 50% 2852 | -10/Subcaves | Learned 4 Materials zone layouts 2950 | -10/Subcaves | A swath of the cavern ceiling suddenly collapsed 2966 | -10/Subcaves | Visited 4L-MR0's lab 3136 | -10/Subcaves | Shifting Twisted Machinery released Piercing Trap 3401 | -10/Subcaves | Entered Materials 3401 | -8/Materials | Evolved 4 slots: Utility x4 3403 | -8/Materials | Loaded intel: 19 interactive machine locations 3460 | -8/Materials | Repaired Lgt. Armor Plating 3911 | -8/Materials | Build established: Scavenger-Mutant 3985 | -8/Materials | Discovered new exit (range 15) 4232 | -8/Materials | Destroyed 7 combat bots 4482 | -8/Materials | Discovered new exit (range 9) 5273 | -8/Materials | Lost 3 parts (1p1n1u) 7905 | -8/Materials | Identified exit to Factory 7909 | -8/Materials | Entered Factory 7909 | -7/Factory | Accompanied by 1 ally 7909 | -7/Factory | Evolved 2 slots: Utility x2 8230 | -7/Factory | Discovered new exit (range 18) 8260 | -7/Factory | Build established: Hacker-Scout 8541 | -7/Factory | Discovered new exit (range 12) 8578 | -7/Factory | Identified exit to Factory 8580 | -7/Factory | Fabricated Hacking Suite? 8803 | -7/Factory | Discovered exit to Factory (range 4) 9440 | -7/Factory | Identified exit to Storage 9440 | -7/Factory | Identified exit to Lower Caves 9561 | -7/Factory | Fabricated Adv. Hacking Suite? 9820 | -7/Factory | Fabricated Adv. Hacking Suite (x1) 9921 | -7/Factory | Build established: Wizard-Mutant 9928 | -7/Factory | Discovered exit to Factory (range 6) 10030 | -7/Factory | Fabricated Adv. Hacking Suite (x1) 10061 | -7/Factory | Fabricated Adv. Hacking Suite? 10562 | -7/Factory | Fabricated Adv. Hacking Suite? 10815 | -7/Factory | Manually triggered Chute Trap 10815 | -7/Factory | Sucked down chute 10815 | -7/Factory | Entered Waste 10816 | -7/Waste | Joined by Warlord forces that had cleared the area 10860 | -7/Waste | 1 allies followed down the chute 10928 | -7/Waste | Discovered new exit (range 13) 10930 | -7/Waste | Build established: Wizard-Sprinter 10936 | -7/Waste | Identified exit to Factory 11005 | -7/Waste | Entered Factory 11005 | -7/Factory | Accompanied by 21 allies 11035 | -7/Factory | Discovered exit to Lower Caves (range 4) 11226 | -7/Factory | Lost 5 allies 11464 | -7/Factory | Discovered exit to Factory (range 10) 11692 | -7/Factory | Lost 3 allies 11810 | -7/Factory | Central database locked down 11887 | -7/Factory | Cargo convoy interrupted 11930 | -7/Factory | Lost 6 allies 12000 | -7/Factory | Fabricated Exp. Utility Shielding? 12120 | -7/Factory | Entered Lower Caves 12120 | -7/Lower Caves | Accompanied by 2 allies 12152 | -7/Lower Caves | Encountered a Warlord checkpoint 12178 | -7/Lower Caves | Learned Factory garrison access intel 12238 | -7/Lower Caves | Discovered new exit (range 8) 12240 | -7/Lower Caves | Identified exit to Lower Caves 12266 | -7/Lower Caves | Entered another Lower Caves area 12266 | -7/Lower Caves | Accompanied by 2 allies 12341 | -7/Lower Caves | Discovered exit to Factory (range 5) 12401 | -7/Lower Caves | Learned Factory stockpile data 12401 | -7/Lower Caves | Learned Extension stockpile data 12401 | -7/Lower Caves | Learned Research security intel 12401 | -7/Lower Caves | Learned Extension security intel 12401 | -7/Lower Caves | Learned Extension terminal intel 12527 | -7/Lower Caves | Discovered new exit (range 9) 12530 | -7/Lower Caves | Identified exit to Zion 12557 | -7/Lower Caves | Entered Zion 12557 | -7/Zion | Accompanied by 2 allies 12571 | -7/Zion | Given A8's code to call for help 12603 | -7/Zion | Discovered new exit (range 13) 12607 | -7/Zion | Identified exit to Proximity Caves 12757 | -7/Zion | Learned Factory emergency access door positions 12805 | -7/Zion | Learned location of Storage (-7) 12819 | -7/Zion | Learned Factory trap positions 12842 | -7/Zion | Learned location of Warlord (-4) 13023 | -7/Zion | Entered Proximity Caves 13023 | -6/Proximity Caves | Accompanied by 2 allies 13025 | -6/Proximity Caves | Attracted the attention of an 0b10 checkpoint 13032 | -6/Proximity Caves | Spotter reported a threat 13032 | -6/Proximity Caves | Spotter reported a threat 13250 | -6/Proximity Caves | Learned Factory stockpile data 13321 | -6/Proximity Caves | Discovered exit to Factory (range 14) 13327 | -6/Proximity Caves | Entered Factory 13327 | -6/Factory | Evolved 2 slots: Utility x2 13328 | -6/Factory | Loaded intel: 87 trap records 13331 | -6/Factory | Loaded intel: 4 garrison access locations 13448 | -6/Factory | Discovered new exit (range 16) 13528 | -6/Factory | Fabricated Imp. Cesium-ion Thruster? 13592 | -6/Factory | Repaired Imp. Sensor Array 13817 | -6/Factory | Repaired Multitool 13895 | -6/Factory | Build established: Wizard-Scout 13942 | -6/Factory | Discovered new exit (range 5) 13943 | -6/Factory | Identified exit to Factory 14686 | -6/Factory | Discovered exit to Factory (range 8) 14766 | -6/Factory | Discovered exit to Factory (range 11) 15059 | -6/Factory | Discovered new exit (range 21) 15065 | -6/Factory | Identified exit to Lower Caves 15074 | -6/Factory | Spotted B-75 Beast 15100 | -6/Factory | Discovered exit to Factory (range 11) 15178 | -6/Factory | Discovered new exit (range 5) 15179 | -6/Factory | Identified exit to Extension 15234 | -6/Factory | Fabricated Imp. Cesium-ion Thruster? 15602 | -6/Factory | Repaired Multitool 15744 | -6/Factory | Central database locked down 15888 | -6/Factory | Fabricated Mni. Grenade Launcher (x1) 15970 | -6/Factory | Entered Extension 15972 | -6/Extension | Loaded intel: 15 terminal locations 16035 | -6/Extension | Spotted B-75 Beast 16153 | -6/Extension | Rescued a captive Derelict 16156 | -6/Extension | Rescued a captive Derelict 16171 | -6/Extension | Rescued a captive Derelict 16364 | -6/Extension | Enhanced Grunt warped into view, answering call for help 16366 | -6/Extension | Enhanced Grunt warped into view, answering call for help 16523 | -6/Extension | Spotted B-75 Beast 16530 | -6/Extension | Discovered exit to Factory (range 3) 16531 | -6/Extension | Entered Factory 16531 | -5/Factory | Evolved 2 slots: Propulsion x1, Utility x1 16535 | -5/Factory | Discovered new exit (range 20) 16631 | -5/Factory | Identified exit to Upper Caves 16645 | -5/Factory | Allied Derelicts emerged from ambush trap array 16724 | -5/Factory | Discovered new exit (range 22) 16757 | -5/Factory | Spotted B-75 Beast 16811 | -5/Factory | Lost 3 allies 16854 | -5/Factory | Discovered new exit (range 11) 16859 | -5/Factory | Identified exit to Factory 17337 | -5/Factory | Lost 3 parts (1n1u1w) 17463 | -5/Factory | Fabricated Field Propulsion Array (x1) 17594 | -5/Factory | Fabricated Q-thruster (x2) 17644 | -5/Factory | Central database locked down 17769 | -5/Factory | Build established: Wizard-Ninja 17784 | -5/Factory | Manually triggered Chute Trap 17784 | -5/Factory | Sucked down chute 17784 | -5/Factory | Entered Waste 17789 | -5/Waste | Spotted C-40 Crusher 17793 | -5/Waste | Spotted C-40 Crusher 17797 | -5/Waste | Spotted C-40 Crusher 17799 | -5/Waste | EMP discharged 17801 | -5/Waste | Spotted C-40 Crusher 17806 | -5/Waste | Spotted C-40 Crusher 17807 | -5/Waste | Found Prototype Device 17809 | -5/Waste | Discovered new exit (range 12) 17812 | -5/Waste | Identified exit to Factory 17813 | -5/Waste | Entered Factory 17818 | -5/Factory | 2 allies followed down the chute 18052 | -5/Factory | Discovered exit to Factory (range 21) 18095 | -5/Factory | Discovered exit to Factory (range 22) 18208 | -5/Factory | Discovered exit to Factory (range 21) 18368 | -5/Factory | Fabricated Mni. Smartbomb Launcher? 18379 | -5/Factory | Repaired Exp. Utility Shielding? 18598 | -5/Factory | Fabricated Multitool? 18661 | -5/Factory | Crushed by falling debris 18674 | -5/Factory | Destroyed 11 combat bots 18716 | -5/Factory | Build established: Wizard-Scout 18749 | -5/Factory | Repaired Exp. Utility Shielding 19416 | -5/Factory | Crushed by falling debris 19416 | -5/Factory | Core integrity fell below 50% 19416 | -5/Factory | System corruption reached 10% 19432 | -5/Factory | Adv. System Shield fried by hacking feedback 19469 | -5/Factory | Fabricated Exp. Utility Shielding? 19472 | -5/Factory | Fabricated Mni. Smartbomb Launcher? 19651 | -5/Factory | Repaired Nuclear Pulse Array 19698 | -5/Factory | Repaired Exp. Utility Shielding? 19942 | -5/Factory | Entered another Factory area 19942 | -4/Factory | Evolved 2 slots: Propulsion x1, Utility x1 19962 | -4/Factory | Identified exit to Upper Caves 19962 | -4/Factory | Identified exit to Research 20071 | -4/Factory | Repaired Mni. Smartbomb Launcher 20135 | -4/Factory | Spotted B-86 Titan 20225 | -4/Factory | Build established: Wizard-Ninja 20474 | -4/Factory | Repaired Nuclear Pulse Array 20532 | -4/Factory | Repaired Nuclear Pulse Array 20583 | -4/Factory | Repaired Adv. Sensor Array 20838 | -4/Factory | Found Prototype Processor 20838 | -4/Factory | Identified Exp. Signal Interpreter 20846 | -4/Factory | Manually triggered Chute Trap 20846 | -4/Factory | Sucked down chute 20846 | -4/Factory | Entered Waste 20846 | -4/Waste | The area was eerily silent 20956 | -4/Waste | Discovered new exit (range 13) 20961 | -4/Waste | Identified exit to Factory 20961 | -4/Waste | Entered Factory 21079 | -4/Factory | Spotted B-86 Titan 21166 | -4/Factory | Repaired Nuclear Pulse Array 21173 | -4/Factory | Repaired Lgt. Antimatter Reactor 21187 | -4/Factory | Repaired Broken Lgt. Quantum Reactor 21217 | -4/Factory | Repaired Nuclear Pulse Array 21262 | -4/Factory | Repaired Adv. Cloaking Device? 21275 | -4/Factory | Repaired Mni. Smartbomb Launcher 21335 | -4/Factory | Entered Upper Caves 22184 | -4/Upper Caves | Discovered new exit (range 8) 22188 | -4/Upper Caves | Identified exit to Upper Caves 22188 | -4/Upper Caves | Entered another Upper Caves area 22275 | -4/Upper Caves | Discovered exit to Research (range 21) 22469 | -4/Upper Caves | Discovered new exit (range 14) 22475 | -4/Upper Caves | Identified exit to Warlord 22476 | -4/Upper Caves | Entered Warlord 22493 | -4/Warlord | Discovered new exit (range 14) 22511 | -4/Warlord | System corruption cleaned by Quarantine Array 22697 | -4/Warlord | Warlord's base attacked by MAIN.C 22713 | -4/Warlord | Met Warlord 22791 | -4/Warlord | Learned 4 Quarantine zone layouts 22792 | -4/Warlord | Learned Factory scanalyzer intel 22792 | -4/Warlord | Learned Armory recycling unit intel 22851 | -4/Warlord | Found Prototype Hackware 22851 | -4/Warlord | Identified System Mapper 22962 | -4/Warlord | Warlord forces counterattacked 23018 | -4/Warlord | Opened side exit 23150 | -4/Warlord | Spotted Striker 23155 | -4/Warlord | Spotted Striker 23157 | -4/Warlord | Rewired Striker 23187 | -4/Warlord | Spotted Executioner 23208 | -4/Warlord | Spotted Executioner 23220 | -4/Warlord | Lost 8 allies 23298 | -4/Warlord | Spotted Executioner 23340 | -4/Warlord | Lost 6 allies 23343 | -4/Warlord | Spotted Executioner 23344 | -4/Warlord | Spotted Striker 23372 | -4/Warlord | Warlord base infiltrated, sounded retreat 23393 | -4/Warlord | Spotted Striker 23432 | -4/Warlord | Spotted Striker 23451 | -4/Warlord | Spotted Executioner 23495 | -4/Warlord | Identified exit to Proximity Caves 23495 | -4/Warlord | Entered Proximity Caves 24538 | -3/Proximity Caves | Spotted B-86 Titan 24540 | -3/Proximity Caves | Discovered exit to Research (range 5) 24541 | -3/Proximity Caves | Entered Research 24541 | -3/Research | Evolved 2 slots: Power x1, Propulsion x1 24548 | -3/Research | Spotted B-86 Titan 24601 | -3/Research | Identified exit to Armory 24601 | -3/Research | Identified exit to Testing 24708 | -3/Research | Entered Testing 24725 | -3/Testing | Identified exit to Research 24735 | -3/Testing | Found Prototype Device 24735 | -3/Testing | Identified Exp. Hardlight Generator 24795 | -3/Testing | Found Prototype Leg 24795 | -3/Testing | Identified Myomer Exoskeleton 24832 | -3/Testing | Found Prototype Processor 24832 | -3/Testing | Identified Exp. Terrain Scan Processor 24875 | -3/Testing | Found Prototype Processor 24875 | -3/Testing | Identified Exp. Target Analyzer 24885 | -3/Testing | Found Prototype Ballistic Gun 24885 | -3/Testing | Identified Hyp. Multirail 25115 | -3/Testing | Found Prototype Hackware 25115 | -3/Testing | Identified Ghost Barrier 25506 | -3/Testing | Crushed by falling debris 25596 | -3/Testing | Found Prototype Hackware 25596 | -3/Testing | Identified Exp. System Shield 25647 | -3/Testing | Scanned by Researcher 25738 | -3/Testing | Spotted Striker 25814 | -3/Testing | Entered Research 25814 | -2/Research | Accompanied by 1 ally 25814 | -2/Research | Warlord forces began assault on 0b10 25814 | -2/Research | Evolved 2 slots: Propulsion x1, Utility x1 25852 | -2/Research | Spotted B-90 Cyclops 25854 | -2/Research | Identified exit to Access 25854 | -2/Research | Identified exit to Quarantine 25924 | -2/Research | Research machine network offline 26094 | -2/Research | Fabricated Gui. Micro-nuke Launcher (x1) 26142 | -2/Research | Entered Access 26142 | -1/Access | Accompanied by 2 allies 26142 | -1/Access | Evolved 2 slots: Propulsion x1, Weapon x1 26166 | -1/Access | Spotted B-99 Colossus 26320 | -1/Access | Garrison activated, responded to threat 26367 | -1/Access | Identified exit to Command 26375 | -1/Access | Identified exit to Surface 26398 | -1/Access | Found Prototype Launcher 26479 | -1/Access | Entered Command 26479 | -1/Command | Accompanied by 1 ally 26556 | -1/Command | Spotted M Guard 26574 | -1/Command | Identified Point Singularity Launcher 26593 | -1/Command | Spotted B-99 Colossus 26709 | -1/Command | Repaired Exp. Utility Shielding 26761 | -1/Command | Spotted Striker 26762 | -1/Command | Spotted Alpha 7 26779 | -1/Command | First assault squad dispatched 26798 | -1/Command | Disengaged cave seal 26798 | -1/Command | Derelicts emerged from the dark tunnel 26798 | -1/Command | Welcomed Warlord to Command 26811 | -1/Command | P-80 Master assimilated allied 84-IYD(L) 26818 | -1/Command | Spotted 84-IYD(L) 26956 | -1/Command | Lost 13 allies 27000 | -1/Command | Warlord destroyed during the assault 27067 | -1/Command | Spotted M Guard 27067 | -1/Command | Spotted Combat Programmer 27067 | -1/Command | Spotted Combat Programmer 27096 | -1/Command | Core integrity fell below 50% 27103 | -1/Command | Core integrity fell below 20% 27106 | -1/Command | Destroyed by M Guard with Graviton Cannon Last Messages --------------- 27092_ The unstable cave ceiling collapses. 27093_ Penetrated by EMDS Slug. 27094_ Lrn. Sensor Array destroyed. 27095_ Penetrated by EMDS Slug. 27095_ Adv. Hacking Suite destroyed. 27095_ Imp. Diametric Drive destroyed. 27097_ Penetrated by EMDS Slug. 27101_ Adv. Hacking Suite destroyed. 27101_ Enh. Optical Array destroyed. 27101_ Slug penetrates H-88 Terminator. 27101_ H-88 Terminator suffers critical hit (Destroy). 27101_ Slug penetrates M Guard. 27102_ Penetrated by Slug. 27102_ Slug penetrates Combat Programmer. 27102_ EMDS Slug penetrates Earth. 27103_ M Guard Prototype Device blasted off. 27103_ Exp. Signal Interpreter destroyed. 27104_ EMDS Slug penetrates M Guard. 27104_ EMDS Slug penetrates Earth. 27105_ Penetrated by Slug. Map ----- +----------------------------------------------------+ | ????????????????????????# #????????????????????? | | ????????????????????????# #????????????????????? | | ????????????????????????# #????????????????????? | | ????????????????????????# #????????????????????? | | ????????????????????????# #????????????????????? | | ????????????????????????# #????????????????????? | | ????????????????????????# #????????????????????? | | ????????????????????????# #????????????????????? | | ????????????????????????# #????????????????????? | | ????????????????????????# #????????????????????? | | ????????????????????????# #????????????????????? | | ????????????????????????# #?#####??????????????? | | ????????????????????????# ## # ####???????????? | | ??????????????????????### ##??????????? | | ?????????????????#"""## ## ###?#####??? | | ?????????????????# # #?# #??? | | ?????????????????# ## W W # ### #### | | ?????????????????# p / | | ?????????????????# YYp h + | | ?????????????????# / / | | ?????????????????# / | | ?????????????????# / | | ?????????????????# # W ### #### | | ?????????????????###### # #?# #??? | | ????????????????????# ###"#######?#####??? | | ????????????????????### #@ ## #?????????????????? | | ??????????????????????# # #??#?????????????????? | | ??????????????????????###% #????????????????????? | | ????????????????????????# #????????????????????? | | ????????????????????????# #????????????????????? | | ????????????????????????# #????????????????????? | | ????????????????????????# #????????????????????? | | ????????????????????????# #????????????????????? | | ????????????????????????# #???????????????###### | | ????????????????????????? #???????????????# ] | | ????????????????????????? #???????????????# ] | | ????????????????????????? #???????????????# | | ????????????????????????? #???????????????# | | ????????????????????????? #???????????????# | | ????????????????????????? #???????????????# | | ?????????????????????????###????????????????# | | ????????????????????????????????????????????# | | ????????????????????????????????????????????# | | ????????????????????????????????????????????###### | | ????????????????????????????????????????????###### | | ????????????????????????????????????????????# | | ????????????????????????????????????????????# | | ????????????????????????????????????????????# | | ????????????????????????????????????????????# "" | | ????????????????????????????????????????????#"""" | +----------------------------------------------------+ Best States ------------- Heat Dissipation 69 Energy Generation 43 Energy Capacity 315 Matter Stores 300 Matter Capacity 300 Sight Range 22 Robot Scan Range 18 Terrain Scan Density 10 ECM Strength 1 Cloak Strength 4 Base Temperature (-) 200 Armor Coverage 375 Utility Shielding 90 Evasion (%) 77 Targeting Accuracy 8 Recoil Reduction 2 Offensive Hacking 104 Defensive Hacking 36 Item Schematics ----------------- ECM Suite | -10/Materials | Hacked Multitool | -8/Materials | Scanalyzed Hacking Suite | -8/Materials | Scanalyzed Imp. VTOL Module | -8/Materials | Scanalyzed Imp. Cesium-ion Thruster | -7/Factory | Hacked Adv. Signal Interpreter | -7/Factory | Hacked Adv. Hacking Suite | -7/Factory | Hacked Mni. Grenade Launcher | -7/Factory | Hacked Exp. Utility Shielding | -7/Factory | Hacked Imp. Thermal Generator | -7/Zion | Archive Coolant Injector | -7/Zion | Archive Imp. Coolant Injector | -7/Zion | Archive Imp. Deuterium Engine | -7/Zion | Archive Imp. Medium Treads | -7/Zion | Archive Energy Filter | -7/Zion | Archive 0b10 Decoder Chip [Scout] | -7/Zion | Archive Great Axe | -7/Zion | Archive Plasma Rifle | -7/Zion | Archive Mak. Laser | -7/Zion | Archive Adv. System Shield | -7/Zion | Archive Beamcaster | -7/Zion | Archive Imp. EM Pulse Cannon | -7/Zion | Archive Mak. Sword | -7/Zion | Archive Thermic Laser | -7/Zion | Archive Lrn. Sensor Array | -6/Factory | Hacked Imp. Phase Shifter | -5/Factory | Hacked Imp. System Restoration Module | -5/Factory | Scanalyzed Imp. Trap Extractor | -5/Factory | Scanalyzed Cld. VTOL Module | -5/Factory | Scanalyzed Field Propulsion Array | -5/Factory | Hacked Q-thruster | -5/Factory | Hacked Mni. Smartbomb Launcher | -5/Factory | Hacked Lgt. Neutrino Core | -5/Factory | Hacked Rnf. Quantum Reactor | -4/Factory | Hacked Micro-nuke Launcher | -4/Factory | Hacked Gui. Micro-nuke Launcher | -3/Testing | Hacked Lrn. Phase Cannon | -3/Testing | Archive Adv. EM Disruption Field | -3/Testing | Archive Robot Schematics ------------------ O-24 Administrator | -7/Factory | Hacked D-83 Annihilator | -7/Zion | Archive S-27 Virus | -7/Zion | Archive H-55 Commando | -7/Zion | Archive T-07 Excavator | -7/Zion | Archive Fabricated ------------ Hacking Suite | x1 | -7/Factory Adv. Hacking Suite | x1 | -7/Factory Adv. Hacking Suite | x1 | -7/Factory Adv. Hacking Suite | x1 | -7/Factory Adv. Hacking Suite | x1 | -7/Factory Adv. Hacking Suite | x1 | -7/Factory Exp. Utility Shielding | x1 | -7/Factory Imp. Cesium-ion Thruster | x1 | -6/Factory Imp. Cesium-ion Thruster | x1 | -6/Factory Mni. Grenade Launcher | x1 | -6/Factory Field Propulsion Array | x1 | -5/Factory Q-thruster | x2 | -5/Factory Mni. Smartbomb Launcher | x1 | -5/Factory Multitool | x1 | -5/Factory Exp. Utility Shielding | x1 | -5/Factory Mni. Smartbomb Launcher | x1 | -5/Factory Gui. Micro-nuke Launcher | x1 | -2/Research Alien Tech Used ----------------- None Achievements -------------- l33t h4x0r Challenges ------------ None Game ------ Seed ChromaticInsulatedMace Manual? 0 Play Time 06:17:17 Cumulative 135.6 hours Start 2024.05.29 @ 20:31:30 End 2024.05.30 @ 14:50:45 Sessions 3 Manual Loads 0 Difficulty Rogue Special Mode None Game No. 85 Rogue 85 Adventurer 0 Explorer 0 Win Type - Total 2 Types 1/0/0/1/0/0/0/0/0 Lore% 65 Gallery% 56 Achievement% 51 Wizard Run 0 Options --------- Layout 0 ASCII 0 Keyboard 0 Movement Mouse Keybinds 0 Fullscreen 1 Font 18/SmallcapsGlow Map View 76x50 Zoom Use 0% Tactical HUD 1 Map Filters NONE Filters NONE Steam 1 RUN: e7c47327-231f-4cd1-a14e-d0b4f13b6a34